Cogmind - Beta 17.1 @@@ ROGUE MODE // 2026.09.10 @ 18:51:04 Player: SunShine214 Result: Destroyed self via exploding Fusion Modulator Performance ------------- Evolutions (0) 0 Regions Visited (1) 200 Robots Destroyed (17) 85 Value Destroyed (415) 415 Prototype IDs (0) 0 Alien Tech Used (0) 0 Bonus (0) 0 TOTAL SCORE: 700 Bonus ------- None Cogmind --------- Core Integrity 0/250 Matter 300/300 Energy 160/160 System Corruption 1% Temperature Cool (17) Movement Walking (190) Ox1 Location -10/Materials Parts ------- > --- POWER (1) -------- Light Nuclear Core > --- PROPULSION (2) --- Aluminum Leg > --- UTILITY (2) ------ Small Storage Unit Seismic Detector > --- WEAPON (2) ------- Small Laser Light Assault Rifle > --- INVENTORY (8) ---- Mining Laser Peak State ------------ > --- POWER ------------ Light Nuclear Core > --- PROPULSION ------- Light Treads Light Treads > --- UTILITY ---------- Small Storage Unit Seismic Detector > --- WEAPON ----------- Medium Laser Light Assault Rifle > --- INVENTORY -------- Ion Engine Mining Laser [Rating: 9] Favorites ----------- Power Light Nuclear Core Engine Ion Engine Power Core Light Nuclear Core Propulsion Light Treads Treads Light Treads Leg Aluminum Leg Utility Small Storage Unit Device Seismic Detector Storage Small Storage Unit Weapon Light Assault Rifle Energy Gun Medium Laser Ballistic Gun Light Assault Rifle Build | -11 -10 ------- Run | Yrd Mat Slots Evolved . | . . Power . | . . Propulsion . | . . Utility . | . . Weapon . | . . Parts Attached 11 | 7 4 Power 2 | 1 1 Engine 1 | 1 . Core 1 | . 1 Reactor . | . . Propulsion 3 | 2 1 Treads 2 | 2 . Leg 1 | . 1 Wheel . | . . Hover . | . . Flight . | . . Utility 3 | 2 1 Device 1 | 1 . Storage 2 | 1 1 Processor . | . . Hackware . | . . Protection . | . . Artifact . | . . Weapon 3 | 2 1 Energy Gun 2 | 1 1 Energy Cannon . | . . Ballistic Gun 1 | 1 . Ballistic Cannon . | . . Launcher . | . . Special Weapon . | . . Impact Weapon . | . . Slashing Weapon . | . . Piercing Weapon . | . . Special Melee Weapon . | . . Unidentified Prototypes . | . . Parts Lost 2 | . 2 Power . | . . Propulsion 2 | . 2 Utility . | . . Weapon . | . . Highest Loss Streak 1 | . 1 To Critical Strikes . | . . Average Backups . | . 1 Power . | . . Propulsion . | . . Utility . | . . Weapon . | . 1 Tool/Special . | . . Unused Backups 1 | . 1 Power . | . . Propulsion . | . . Utility . | . . Weapon 1 | . 1 Tool/Special . | . . Average Slot Usage (%) 95 | . 95 Engine 5 | . 5 Core 8 | . 8 Treads 22 | . 22 Device 14 | . 14 Storage 14 | . 14 Energy Gun 14 | . 14 Ballistic Gun 14 | . 14 Peak Build Rating 9 | 7 9 Average Rating 7 | 5 7 On Entrance 3 | . 7 Avg Prop Armor Cover (%) . | . . Naked Turns . | . . Heaviest Build 14 | 14 14 Greatest Support 40 | 40 40 Greatest Overweight (x) 4 | . 4 Average Overweight (x) . | . . Largest Inventory Capacity 8 | 8 8 Average Capacity 7 | 7 8 Most Carried 2 | 1 2 Average Carried . | . 1 Final Capacity 8 | 8 8 Final Carried 1 | 1 1 Class Distribution -------------------- 65% | Mutant 34% | Scavenger-Mutant Dominant Class ---------------- Mutant | -10/Materials Resources | -11 -10 ----------- Run | Yrd Mat Matter Collected 355 | 278 77 Remotely . | . . Salvage Created 633 | 111 522 Parts 39 | 15 24 Haulers Intercepted . | . . Recyclers Shooed . | . . Parts Field Recycled . | . . Retrieved Matter . | . . Parts Self-Destructed . | . . Prevented . | . . Parts Restored . | . . Kills | -11 -10 ------- Run | Yrd Mat Combat Hostiles Destroyed 9 | . 9 Guns 9 | . 9 Classes Destroyed 6 | 3 3 Worker 2 | 1 1 Tunneler 2 | 2 . Recycler 2 | 1 1 Operator 1 | . 1 Watcher 1 | . 1 Grunt 9 | . 9 Best Kill Streak 6 | 2 6 Combat Bots Only 3 | . 3 Max Kills in Single Turn 1 | 1 1 Gunslinging . | . . Exploded . | . . Melee . | . . Uniques/NPCs Destroyed . | . . Combat | -11 -10 -------- Run | Yrd Mat Hostile Shots Fired 68 | . 68 Missed 16 | . 16 Hits 52 | . 52 Projectile 52 | . 52 Critical Strikes 1 | . 1 Damage Taken 768 | . 768 Core 269 | . 269 Absorbed by Shields . | . . Core Remaining (%) 100 | 100 . Volleys Fired 53 | 8 45 Largest 2 | 2 2 Hottest 70 | 70 70 Shots Fired 106 | 16 90 Gun 106 | 16 90 Cannon . | . . Launcher . | . . Special . | . . Kinetic 53 | 8 45 Thermal 53 | 8 45 Explosive . | . . Electromagnetic . | . . Robot Hit Streak 15 | 4 15 Robot Miss Streak 3 | 3 2 Penetration Max . | . . Secondary Targets 1 | . 1 Max Gunslinging Chain 1 | . 1 Shots Hit Robots 75 | 9 66 Core Hits 35 | 6 29 Critical Kills . | . . Critical Parts Destroyed . | . . Critical Strikes 3 | . 3 Burn 3 | . 3 Melee Attacks . | . . Impact . | . . Slashing . | . . Piercing . | . . Sneak Attacks . | . . Combat Hostiles . | . . Follow-up Attacks . | . . Damage Inflicted 764 | 96 668 Guns 757 | 95 662 Cannons . | . . Explosions . | . . Melee . | . . Ramming 7 | 1 6 Kinetic 280 | 32 248 Thermal 477 | 63 414 Explosive . | . . Electromagnetic . | . . Impact . | . . Slashing . | . . Piercing . | . . Highest Corruption 1 | . 1 Average Corruption 1 | . 1 Corruption Purged . | . . Corruption Blocked . | . . Effects 1 | . 1 Message Errors 1 | . 1 Overload Shots . | . . Overflow Damage . | . . Projectiles . | . . Explosions . | . . Melee . | . . Knockbacks . | . . Impact . | . . Kinetic . | . . Secondary . | . . Self-Inflicted Damage 114 | . 114 Shots 1 | . 1 Rammed 1 | . 1 Targets Rammed 2 | 1 1 Kicked . | . . Crushed 1 | 1 . Highest Temperature 298 | 100 298 Average Temperature 89 | 45 96 Received Heat Transfer 387 | . 387 Siege Activations . | . . Martial Activations . | . . Shielding Activations . | . . Robots Disrupted . | . . Combat Hostiles . | . . Robots Corrupted . | . . Combat Hostiles . | . . Parts Fried . | . . Impact Corruptions . | . . Robots Melted . | . . Combat Hostiles . | . . Parts Melted 4 | . 4 Heat Transferred 1510 | 185 1325 Parts Sabotaged . | . . Parts Stolen . | . . Parts Stripped . | . . Power Chain Reactions . | . . Alert | -11 -10 ------- Run | Yrd Mat Maximum Alert Level . | . . Low Security (%) 100 | 100 100 Level 1 . | . . Level 2 . | . . Level 3 . | . . Level 4 . | . . Level 5 . | . . High Security . | . . Max Security . | . . Peak Influence 97 | 10 97 Initial 3 | . 3 Average 42 | . 56 Influence Increases 277 | 20 257 Destroy 0b10 Robot/C 180 | . 180 Destroy 0b10 Robot/NC 40 | 20 20 Destroy Leader 42 | . 42 Disable Machine 15 | . 15 Influence Decreases 180 | 15 165 Entered New Map 2 | . 2 Time Decay 158 | 15 143 Lost Part 20 | . 20 Squads Dispatched 1 | . 1 Investigation 1 | . 1 Extermination . | . . Reinforcement . | . . Assault . | . . Garrison . | . . Intercept . | . . Searches Triggered . | . . Construction Impeded . | . . Haulers Reinforced . | . . Active Scanning Responses . | . . Cargo Convoy Interrupts . | . . Stealth | -11 -10 --------- Run | Yrd Mat Distress Signals 2 | . 2 Communications Jammed . | . . Distress Signals . | . . Times Spotted 15 | . 15 Peak Tracking Total 5 | . 5 Tactical Retreats . | . . Traps | -11 -10 ------- Run | Yrd Mat Traps Triggered . | . . Indirectly . | . . Trap Hack Attempts . | . . Triggered . | . . Disarmed . | . . Reprogrammed . | . . Reused . | . . Traps Extracted . | . . Installed . | . . Triggered . | . . Machines | -11 -10 ---------- Run | Yrd Mat Machines Disabled 1 | . 1 Max in Single Turn 1 | . 1 Machines Repaired . | . . Machines Dismantled . | . . Machines Sabotaged . | . . Overloaded Fab Kills . | . . Hacking | -11 -10 --------- Run | Yrd Mat Machines Accessed 1 | . 1 Terminals 1 | . 1 Fabricators . | . . Repair Stations . | . . Recycling Units . | . . Scanalyzers . | . . Garrison Access . | . . Total Hacks 2 | . 2 Successful . | . . Failed 2 | . 2 Catastrophic 1 | . 1 Database Lockouts . | . . Manual 2 | . 2 Terminals 2 | . 2 Fabricators . | . . Repair Stations . | . . Recycling Units . | . . Scanalyzers . | . . Garrison Access . | . . Terminal Hacks . | . . Fabricator Hacks . | . . Repair Station Hacks . | . . Recycling Unit Hacks . | . . Scanalyzer . | . . Garrison Access Hacks . | . . Unauthorized Hacks . | . . Terminals . | . . Fabricators . | . . Repair Stations . | . . Recycling Units . | . . Scanalyzers . | . . Garrison Access . | . . Data Cores Recovered . | . . Used . | . . Hacking Detections 1 | . 1 Full Trace Events 1 | . 1 Feedback Events 1 | . 1 Corruption 1 | . 1 Feedback Blocked . | . . Robot Schematics Acquired . | . . Robots Built . | . . Authchips . | . . Time . | . . Total Robot Build Rating . | . . Part Schematics Acquired . | . . Parts Built . | . . Authchips . | . . Time . | . . Total Part Build Rating . | . . Part Studies Acquired . | . . Parts Repaired . | . . Time . | . . Parts Recycled . | . . Recycled Matter . | . . Retrieved Matter . | . . Retrieved Components . | . . Parts Scanalyzed . | . . Part Schematics Acquired . | . . Parts Damaged . | . . Bothacking | -11 -10 ------------ Run | Yrd Mat Used RIF Installer . | . . Robots Hacked . | . . Non-combat . | . . Combat . | . . Robot Hacks Applied . | . . Relay Couplers Released . | . . Fabnet Peak Effective % . | . . Robots Rewired . | . . Allies Hacked . | . . Hacks Repelled . | . . Allies | -11 -10 -------- Run | Yrd Mat Total Allies . | . . Largest Group . | . . Highest-Rated Group . | . . Highest-Rated Ally . | . . Total Orders . | . . Ally Attacks . | . . Total Damage . | . . Kills . | . . Allies Corrupted . | . . Allies Melted . | . . Intel | -11 -10 ------- Run | Yrd Mat Active Infowar (turns) 390 | 54 336 Seismic 390 | 54 336 Robot Analysis Total . | . . Derelict Logs Recovered . | . . Drone Launches . | . . Drone Recoveries . | . . Exploration | -11 -10 ------------- Run | Yrd Mat Turns Passed 440 | 104 336 Spaces Moved 160 | 45 115 Core 3 | 2 1 Treads 155 | 43 112 Legs 2 | . 2 Wheels . | . . Hover . | . . Flight . | . . Fastest Speed 50 | 50 160 Average Speed 159 | 155 161 Slowest Speed 250 | 160 250 Overloaded Moves . | . . Propulsion Burnouts . | . . Robots Hopped . | . . Potential Cave-ins . | . . Cave-ins Triggered . | . . Exploration Rate (%) 14 | 3 25 Regions Visited 1 Branch Regions . Pre-discovered Areas . | . . Known Exits Taken . | . . Unknown Exits Taken 1 | 1 . Scrap Searched . | . . Spaces Dug . | . . Terrain Destroyed . | . . Melee . | . . Projectile . | . . AOE . | . . Terrain Rammed . | . . Walls Destroyed . | . . Machines Disabled . | . . Actions | -11 -10 --------- Run | Yrd Mat Total 244 | 61 183 Wait 15 | . 15 Move 160 | 45 115 Hop . | . . Pick Up 1 | 1 . Fast Attach 8 | 7 1 Attach . | . . Detach . | . . Swap 3 | . 3 Drop 3 | . 3 Fire 53 | 8 45 Melee . | . . Ram . | . . Kick . | . . Crush 1 | . 1 Escape Stasis . | . . Rewire . | . . Trap . | . . Miscellaneous . | . . Route ------- -11/Scrapyard -10/Materials (discovered 1 exit: [*Mat]) History --------- Turn | Location | Event 18 | -11/Scrapyard | Discovered new exit (range 16) 105 | -11/Scrapyard | Entered Materials 281 | -10/Materials | Discovered new exit (range 14) 423 | -10/Materials | Core integrity fell below 50% 441 | -10/Materials | Destroyed self via exploding Fusion Modulator Last Messages --------------- 00285_ Dropped Med. Laser. 00287_ K-01 Serf collects debris. 00310_ R-06 Scavenger collects Lgt. Ion Engine. 00314_ R-06 Scavenger collects Datajack. 00323_ A-02 Transporter sends out distress signal. 00340_ Hadron Collector disabled. 00346_ Lgt. Treads destroyed. 00348_ Critical hit (Burn: +37). 00350_ G-47 Trooper destroyed. 00357_ SC0RH502Q,2DXGGE:4NIGCAZKP9,0P/ZI 00364_ G-34 Mercenary destroyed. 00369_ Acquired 18 matter. 00371_ K-01 Serf collects debris. 00414_ Lgt. Treads destroyed. 00416_ G-34 Mercenary destroyed. 00422_ Acquired Aluminum Leg. 00434_ G-47 Trooper destroyed. 00439_ Acquired 16 matter. 00441_ Fusion Modulator explodes. Map ----- +----------------------------------------------------+ | ?????????????????????????????????????????????????? | | ?????????????????????????????????????????????????? | | ?????????????????????????????????????????????????? | | ?????????????????????????????????????????????????? | | ?????????????????????????????????????????????????? | | ?????????????????????????????????????????????????? | | ?????????????????????????????????????????????????? | | ?????????????????????????????????????????????????? | | ?????????????????????????????????????????????????? | | ?????????????????????????????????????????????????? | | ?????????????????????????????????????????????????? | | ????????? ??????????????????????????????????????? | | ????????? ??????????????????????????????????????? | | ????????# ""????????????????????????????????????? | | ????????# ""????????????????????????????????????? | | ?????#### ????????????????????????????????????? | | ????? ????????????????????????????????????? | | ?????? #??????######+####???????????????????? | | ?????? #??????# #???????????????????? | | ??????? #??????# #???????????????????? | | ??????? #??????# #???????????????????? | | ???????? #??????# #???????????????????? | | ????????# #??????# #???????????????????? | | ??#####?# #??????# "T" #???????????????????? | | ??? ?# #??????# """ #???????????????????? | | ????? # #??????# [@! #???????????????????? | | ??????" # #??????######/####???????????????????? | | ??????? + ############ = ####??????????????????? | | ????????# +??????????????????? | | ????????# ############ ####??????????????????? | | ????????# # #?## ##?????????????????????? | | ????????# # T #??# #??????????????????????? | | ?######## # #??# #??????????????????????? | | ?# ^ # #??# #??????????????????????? | | ?# ^ %+[ #??# #??????????????????????? | | ?# #* """" #??# #??????????????????????? | | ?# ^ # """ #??? #??????????????????????? | | ?# """ [ # """" #???a???????????????????????? | | ?# """ # #??? ???????????????????????? | | ## """ ##########???+???????????????????????? | | ] #???????????? ???????????????????????? | | ^ #????????????"???????????????????????? | | #????????????????????????????????????? | | #????????????????????????????????????? | | ##" % #????????????????????????????????????? | | ?#T = = #????????????????????????????????????? | | ?#" % ########?????????????????????????????? | | ?# % [ # #?????????????????????????????? | | ?# %! # #?????????????????????????????? | | ##! ### # """ #?????????????????????????????? | +----------------------------------------------------+ Best States ------------- Heat Dissipation 25 Energy Generation 14 Energy Capacity 250 Matter Stores 300 Matter Capacity 300 Sight Range 16 Terrain Scan Density 10 Evasion (%) 40 Recoil Reduction 2 Item Schematics ----------------- None Robot Schematics ------------------ None Fabricated ------------ Nothing Repaired ---------- Nothing Studied --------- None Alien Tech Used ----------------- None Achievements -------------- None Challenges ------------ None Game ------ Seed DirectedCombatJoltstriker Manual? 0 Play Time 00:04:00 Cumulative 233.8 hours Start 2026.09.10 @ 18:48:48 End 2026.09.10 @ 18:51:04 Sessions 1 Manual Loads 0 Difficulty Rogue Special Mode None Game No. 344 Rogue 344 Adventurer 0 Explorer 0 Win Type - Total 1 Types 1/0/0/0/0/0/0/0/0/0 Lore% 70 Gallery% 62 Achievement% 47 Wizard Run 0 Options --------- Layout 1 ASCII 0 Keyboard 1 Movement Arrows Keybinds 0 Fullscreen 1 Font 24/Smallcaps Map View 50x35 Zoom Use 0% Tactical HUD 1 Map Filters NONE Filters NONE Steam 1 RUN: 2a9894c2-3e38-4e65-8fc2-39acb7ac2672